bitfinex/quotes_SOLUSD_20250525
["timestamp","ask_amount","ask_price","bid_price","bid_amount"]
[1748185030008,4.27876356,170.87,170.82,117.07365365]
[1748185030214,4.27876356,170.86,170.82,117.07365365]
[1748185031100,6.41813805,170.87,170.82,117.07365365]
[1748185032108,4.27876356,170.86,170.82,117.07365365]
[1748185033111,6.41813805,170.86,170.82,117.07365365]
[1748185033289,4.27876356,170.85,170.82,117.07365365]
[1748185034213,6.41813805,170.87,170.82,117.07365365]
[1748185034998,4.27876356,170.86,170.82,117.07365365]
[1748185036019,4.27876356,170.85,170.82,117.07365365]
[1748185036691,4.27876356,170.86,170.82,117.07365365]
[1748185037511,4.27876356,170.88,170.82,117.07365365]
[1748185037921,2.13937449,170.87,170.82,117.07365365]
[1748185039116,4.27876356,170.86,170.82,117.07365365]
[1748185039318,2.13937449,170.85,170.82,117.07365365]
[1748185039693,4.27876356,170.84,170.82,117.07365365]
[1748185040420,4.27876356,170.87,170.82,117.07365365]
[1748185041122,6.41813805,170.86,170.82,143.07365365]
[1748185041695,2.13937449,170.85,170.82,143.07365365]
[1748185042098,4.27876356,170.84,170.82,143.07365365]
[1748185042717,6.41813805,170.84,170.82,143.07365365]
[1748185043424,2.13937449,170.84,170.82,143.07365365]
[1748185043625,2.13937449,170.87,170.82,143.07365365]
[1748185044303,4.31197279,170.86,170.82,143.07365365]
[1748185044503,2.13937449,170.85,170.82,143.07365365]
[1748185045232,4.31197279,170.84,170.82,143.07365365]
[1748185046117,2.13937449,170.88,170.82,143.07365365]
[1748185047024,2.13937449,170.87,170.82,143.07365365]
[1748185047229,6.45109406,170.87,170.82,143.07365365]
[1748185047903,4.31171957,170.86,170.82,143.07365365]
[1748185049333,4.31171957,170.85,170.84,26.0]
[1748185050117,4.31171957,170.87,170.84,26.0]
[1748185050335,6.45109406,170.87,170.84,26.0]
[1748185050534,6.45109406,170.87,170.85,38.5]
[1748185050914,2.13937449,170.86,170.85,38.5]
[1748185051314,6.45109406,170.86,170.85,38.5]
[1748185051828,4.31171957,170.86,170.85,38.5]
[1748185052842,6.45109406,170.86,170.85,120.51365365]
[1748185054739,2.13937449,170.86,170.85,120.51365365]
[1748185054931,4.31171957,170.88,170.85,120.51365365]
[1748185055430,4.31171957,170.87,170.86,84.12]
[1748185055629,4.31171957,170.87,170.86,166.13365365]
[1748185059239,4.31171957,170.89,170.86,166.13365365]
[1748185059432,6.45109406,170.89,170.87,35.06]
[1748185060244,4.31171957,170.89,170.87,35.06]
[1748185060537,6.45109406,170.88,170.86,166.13365365]
[1748185060710,6.45109406,170.88,170.87,35.04]
[1748185067439,4.31171957,170.88,170.87,35.04]
[1748185068320,6.45109406,170.88,170.87,35.04]
[1748185069553,4.31171957,170.88,170.87,35.04]
[1748185071137,6.45109406,170.88,170.87,35.04]
[1748185071443,6.45109406,170.88,170.86,167.02]
[1748185071665,6.45109406,170.88,170.87,35.04]
[1748185073339,9.76396842,170.88,170.87,35.04]
[1748185079250,9.76396842,170.88,170.87,73.44]
[1748185084050,9.76396842,170.88,170.87,157.54]
[1748185092240,9.90612999,170.88,170.87,84.1]
[1748185092444,54.55577885,170.88,170.87,122.5]
[1748185093264,54.55577885,170.88,170.77,82.9]
[1748185093759,0.14216157,170.86,170.78,35.04]
[1748185094148,4.31171957,170.85,170.78,35.04]
[1748185094355,4.31171957,170.85,170.76,108.9]
[1748185094554,7.564,170.83,170.77,35.04]
[1748185094759,2.13937449,170.82,170.77,35.04]
[1748185095144,4.31171957,170.81,170.77,35.04]
[1748185095739,6.45720619,170.8,170.77,35.04]
[1748185095939,10.76892576,170.8,170.77,35.04]
[1748185096153,8.62955127,170.8,170.77,35.04]
[1748185096639,8.62955127,170.79,170.77,35.04]
[1748185096868,8.62955127,170.79,170.74,28.96491525]
[1748185097060,8.62955127,170.79,170.75,35.06]
[1748185097260,8.62955127,170.79,170.76,35.06]
[1748185097559,4.3178317,170.79,170.77,122.52]
[1748185097871,4.3178317,170.78,170.77,122.52]
[1748185098039,4.30857452,170.81,170.77,122.52]
[1748185098241,3.31287436,170.82,170.77,122.52]
[1748185098444,8.61561632,170.81,170.77,122.52]
[1748185098755,10.76982265,170.81,170.77,122.52]
[1748185099271,2.15420633,170.8,170.77,122.52]
[1748185099471,10.76982265,170.8,170.77,122.52]
[1748185100268,4.3078254,170.8,170.77,122.52]
[1748185100469,4.3078254,170.79,170.77,122.52]
[1748185101262,4.3078254,170.78,170.77,122.52]
[1748185104770,4.3078254,170.78,170.77,84.12]
[1748185104973,4.3078254,170.78,170.77,157.6]
[1748185106055,4.3078254,170.8,170.77,157.6]
[1748185107169,4.3078254,170.79,170.77,157.6]
[1748185108362,4.3078254,170.8,170.77,157.6]
[1748185109566,4.3078254,170.79,170.77,157.6]
[1748185110952,4.3078254,170.81,170.77,157.6]
[1748185111779,4.3078254,170.8,170.77,240.5]
[1748185112654,4.3078254,170.79,170.77,240.5]
[1748185113777,4.3078254,170.81,170.77,240.5]
[1748185114666,4.3078254,170.8,170.77,240.5]
[1748185115458,4.3078254,170.8,170.77,205.44]
[1748185115775,4.3078254,170.79,170.78,35.06]
[1748185124998,8.60814683,170.79,170.78,35.06]
[1748185125507,8.60814683,170.79,170.77,122.54]
[1748185125704,10.75888913,170.79,170.78,35.06]
[1748185127473,10.75888913,170.79,170.77,122.54]
[1748185127789,10.75888913,170.79,170.78,35.06]
[1748185129178,29.55069956,170.79,170.77,122.54]
[1748185129383,29.55069956,170.79,170.78,35.06]
[1748185133094,32.86357392,170.79,170.78,35.06]
[1748185137899,26.74811043,170.78,170.77,84.12]
[1748185138102,26.74811043,170.78,170.77,157.46]
[1748185138317,32.21172709,170.78,170.77,157.46]
[1748185138605,36.51204852,170.78,170.77,157.46]
[1748185138774,0.14216157,170.77,170.68,26.0]
[1748185138974,0.14216157,170.77,170.69,38.26]
[1748185139382,3.31287436,170.76,170.69,38.26]
[1748185139580,7.61319579,170.76,170.69,38.26]
[1748185139788,0.14216157,170.74,170.69,38.26]
[1748185139980,0.14216157,170.74,170.7,35.08]
[1748185140197,4.3078254,170.73,170.7,35.08]
[1748185140499,4.30032143,170.72,170.7,35.08]
[1748185140999,4.3078254,170.71,170.7,35.08]
[1748185141389,8.60814683,170.71,170.7,35.08]
[1748185143105,4.3078254,170.71,170.7,35.08]
[1748185144714,8.60814683,170.71,170.7,35.08]
[1748185145405,4.3078254,170.71,170.7,35.08]
[1748185145794,4.3078254,170.71,170.69,38.26]
[1748185145989,4.3078254,170.71,170.7,35.08]
[1748185147509,4.3078254,170.71,170.7,119.26]
[1748185148007,8.60814683,170.71,170.7,119.26]
[1748185148914,4.3078254,170.71,170.7,119.26]
[1748185154007,4.3078254,170.74,170.7,35.08]
[1748185155007,4.3078254,170.77,170.7,35.08]
[1748185155215,6.45787247,170.77,170.7,117.98]
[1748185155907,4.3078254,170.76,170.7,117.98]
[1748185156109,8.60833152,170.76,170.7,117.98]
[1748185156609,4.3078254,170.75,170.7,117.98]
[1748185157611,4.3078254,170.75,170.71,84.18]
[1748185157800,4.3078254,170.74,170.71,84.18]
[1748185158607,4.30050612,170.77,170.71,84.18]
[1748185158992,6.45274118,170.77,170.71,167.08]
[1748185159693,4.30550962,170.76,170.71,167.08]
[1748185161117,4.30550962,170.75,170.71,167.08]
[1748185161738,4.30550962,170.75,170.71,193.08]
[1748185162015,4.30550962,170.74,170.71,193.08]
[1748185163217,4.30050612,170.77,170.71,193.08]
[1748185163604,1.5335,170.78,170.71,193.08]
[1748185163918,4.30805732,170.77,170.71,193.08]
[1748185164117,8.60856344,170.77,170.71,193.08]
[1748185165216,4.30805732,170.76,170.72,38.26]
[1748185165825,4.30805732,170.75,170.72,38.26]
[1748185167225,4.30805732,170.74,170.72,38.26]
[1748185167701,4.30805732,170.74,170.72,121.16]
[1748185168325,4.30050612,170.77,170.72,121.16]
[1748185169622,4.31015313,170.76,170.72,121.16]
[1748185170211,8.61065925,170.76,170.72,121.16]
[1748185170412,4.31015313,170.75,170.72,121.16]
[1748185171531,4.31015313,170.74,170.72,121.16]
[1748185172315,6.45583004,170.77,170.72,121.16]
[1748185172728,2.15532392,170.77,170.72,121.16]
[1748185173107,4.31072594,170.76,170.72,121.16]
[1748185174328,4.31072594,170.75,170.74,26.0]
[1748185174630,4.31072594,170.75,170.74,108.9]
[1748185177524,4.31072594,170.75,170.74,26.0]
[1748185177732,4.31072594,170.75,170.74,61.08]
[1748185177931,4.31072594,170.75,170.72,38.26]
[1748185178103,4.31072594,170.75,170.73,35.08]
[1748185178732,4.31072594,170.74,170.73,35.08]
[1748185179711,4.31072594,170.74,170.73,119.24]
[1748185188314,4.31072594,170.76,170.73,202.14]
[1748185189348,4.30050612,170.78,170.73,202.14]
[1748185189926,4.31002583,170.77,170.73,202.14]
[1748185191031,4.31002583,170.76,170.73,202.14]
[1748185191953,4.30050612,170.8,170.73,202.14]
[1748185192646,4.30050612,170.79,170.73,202.14]
[1748185192848,4.31291686,170.78,170.73,202.14]
[1748185193338,4.31291686,170.78,170.76,26.0]
[1748185194035,4.31291686,170.78,170.77,38.16]
[1748185194236,4.30050612,170.79,170.77,38.16]
[1748185194435,4.30050612,170.8,170.78,35.08]
[1748185194839,4.31601492,170.79,170.78,35.08]
[1748185195028,8.61652104,170.79,170.78,35.08]
[1748185200051,8.61652104,170.79,170.78,119.22]
[1748185200234,10.77674745,170.79,170.78,202.12]
[1748185200847,8.61652104,170.79,170.78,228.12]
[1748185201148,8.61652104,170.79,170.78,136.62964886]
[1748185201449,4.31601492,170.79,170.78,136.62964886]
[1748185201748,4.13238247,170.83,170.81,26.0]
[1748185201925,4.13238247,170.83,170.81,108.9]
[1748185202318,4.31817847,170.82,170.81,108.9]
[1748185203836,4.31817847,170.82,170.81,117.96]
[1748185204230,8.63408529,170.82,170.81,117.96]
[1748185204436,8.63408529,170.82,170.81,35.06]
[1748185207645,8.63408529,170.82,170.81,157.26]
[1748185210664,4.31817847,170.82,170.81,240.16]
[1748185212264,4.31590682,170.85,170.81,240.16]
[1748185213171,4.31590682,170.86,170.81,240.16]
[1748185213548,4.30894989,170.85,170.81,240.16]
[1748185214553,4.31590682,170.86,170.83,26.0]
[1748185214554,4.30894989,170.84,170.83,26.0]
[1748185215863,4.30894989,170.84,170.83,108.9]
[1748185216051,4.30894987,170.84,170.83,108.9]
[1748185216669,4.83297436,170.93,170.83,108.9]
[1748185216949,4.83297436,170.93,170.87,26.0]
[1748185217151,9.13823696,170.93,170.88,73.12]
[1748185218033,5.8253626,170.93,170.88,73.12]
[1748185219286,0.14216157,170.92,170.88,73.12]
[1748185219447,18.79181043,170.92,170.89,73.12]
[1748185219642,4.3052626,170.91,170.9,38.06]
[1748185220747,4.3052626,170.91,170.9,73.12]
[1748185224869,4.3052626,170.91,170.9,157.24]
[1748185225794,23.09707303,170.91,170.9,157.24]
[1748185228381,27.39774768,170.91,170.9,157.24]
[1748185229481,27.39774768,170.91,170.82,26.0]
[1748185229659,18.79181043,170.9,170.83,73.04]
[1748185229986,0.14216157,170.88,170.83,73.04]
[1748185230178,4.30067465,170.87,170.83,73.04]
[1748185231587,4.30067465,170.86,170.83,73.04]
[1748185232686,4.30067465,170.85,170.83,73.04]
[1748185233691,4.30067465,170.84,170.83,73.04]
[1748185235190,4.30067465,170.84,170.82,26.0]
[1748185235485,4.30067465,170.84,170.83,73.04]
[1748185236878,4.30067465,170.84,170.83,37.98]
[1748185237371,6.5449,170.82,170.72,82.9]
[1748185237567,1.5958,170.8,170.73,183.16]
[1748185237769,4.30067465,170.79,170.74,35.06]
[1748185238386,8.60593725,170.79,170.77,26.0]
[1748185238693,4.3052626,170.79,170.78,35.06]
[1748185239174,4.3052626,170.82,170.78,35.06]
[1748185239490,4.3052626,170.82,170.79,37.98]
[1748185239898,4.30661008,170.81,170.79,37.98]
[1748185241083,4.30661008,170.8,170.79,37.98]
[1748185243898,4.30661008,170.8,170.79,73.04]
[1748185244200,8.61187268,170.8,170.79,73.04]
[1748185245599,4.3052626,170.8,170.79,73.04]
[1748185245782,4.30415907,170.8,170.79,73.04]
[1748185246092,4.30415907,170.8,170.76,26.0]
[1748185246400,8.6083556,170.8,170.79,37.98]
[1748185247494,4.30415907,170.8,170.79,37.98]
[1748185248182,8.6083556,170.8,170.79,37.98]
[1748185248997,4.30415907,170.8,170.79,37.98]
[1748185253910,4.30415907,170.82,170.81,26.0]
[1748185254910,4.30415907,170.83,170.81,26.0]
[1748185255218,4.30415907,170.83,170.82,35.06]
[1748185256890,4.30415907,170.87,170.82,35.06]
[1748185257511,4.30415907,170.87,170.83,84.14]
[1748185257882,4.30415907,170.86,170.83,84.14]
[1748185258782,4.30415907,170.85,170.83,84.14]
[1748185259720,4.30415907,170.84,170.83,84.14]
[1748185261699,4.30415907,170.84,170.83,167.04]
[1748185262010,4.30415907,170.87,170.83,167.04]
[1748185262218,4.30415907,170.87,170.86,26.0]
[1748185262425,4.30415907,170.87,170.86,63.9]
[1748185262590,4.30419653,170.88,170.86,63.9]
[1748185262910,8.6083556,170.91,170.87,35.06]
[1748185263592,4.30415907,170.9,170.87,35.06]
[1748185264416,4.30415907,170.89,170.87,35.06]
[1748185265297,4.30415907,170.93,170.87,35.06]
[1748185265903,8.60743457,170.93,170.87,35.06]
[1748185266316,4.30415907,170.92,170.87,35.06]
[1748185267422,4.30415907,170.91,170.87,35.06]
[1748185268313,4.30415907,170.93,170.87,35.06]
[1748185270104,1.5634,170.94,170.87,35.06]
[1748185270105,4.30415907,170.94,170.9,26.0]
[1748185271025,4.30415907,170.94,170.9,108.9]
[1748185271915,6.0603,170.95,170.9,108.9]
[1748185274325,1.5634,170.98,170.9,108.9]
[1748185275323,4.28980759,170.99,170.94,26.0]
[1748185275525,4.28980759,170.99,170.95,72.92]
[1748185276431,6.0603,171.0,170.95,72.92]
[1748185280018,1.5634,171.03,170.95,75.90333173]
[1748185280416,10.12253177,171.03,170.96,84.08]
[1748185280741,0.14216157,171.02,170.97,35.04]
[1748185280909,18.79181043,171.02,170.97,35.04]
[1748185281538,26.57931043,170.99,170.98,72.92]
[1748185281736,30.85884895,170.99,170.98,72.92]
[1748185282447,35.13646277,170.99,170.98,72.92]
[1748185282649,16.48681391,170.99,170.98,72.92]
[1748185283338,12.20920009,170.99,170.98,72.92]
[1748185284531,16.48903159,170.99,170.98,72.92]
[1748185291138,16.34687002,170.99,170.98,72.92]
[1748185291336,10.16527002,170.99,170.98,72.92]
[1748185292129,5.88543852,170.99,170.98,72.92]
[1748185292331,1.6059,170.99,170.98,72.92]
[1748185292839,1.74806157,170.99,170.98,72.92]
[1748185293225,6.02760009,170.99,170.98,72.92]
[1748185294036,10.32048878,170.99,170.98,72.92]
[1748185294342,10.17832721,170.99,170.98,72.92]
[1748185295036,8.57242721,170.99,170.98,72.92]
[1748185295647,4.27953852,170.99,170.98,72.92]
[1748185299343,8.57242721,170.99,170.98,72.92]
[1748185300138,4.27953852,170.99,170.98,72.92]
[1748185301119,8.57242721,170.99,170.98,72.92]
[1748185304921,8.57242721,170.99,170.98,37.88]
[1748185305127,8.57242721,170.99,170.98,72.92]
[1748185308330,8.71458878,170.99,170.96,84.08]
[1748185308549,8.71458878,170.99,170.97,72.82]
[1748185308746,4.43505026,170.98,170.97,37.8]
[1748185308935,4.43505026,170.98,170.97,72.82]
[1748185309645,12.02746314,170.98,170.97,72.82]
[1748185310052,11.88530157,170.98,170.97,72.82]
[1748185312854,16.01768404,170.98,170.97,72.82]
[1748185315261,11.88530157,170.98,170.97,72.82]
[1748185319940,7.60576305,170.98,170.97,72.82]
[1748185322365,7.60576305,170.98,170.97,72.76]
[1748185322574,7.74792462,170.98,170.97,72.76]
[1748185322951,34.19507348,170.98,170.97,37.74]
[1748185323272,34.19507348,170.98,170.97,72.76]
[1748185323846,15.54542462,170.98,170.97,72.76]
[1748185325074,15.40326305,170.98,170.97,72.76]
[1748185325455,15.54542462,170.98,170.97,72.76]
[1748185327800,0.14216157,170.97,170.96,84.08]
[1748185327991,0.14216157,170.97,170.96,121.82]
[1748185328377,4.43505026,170.97,170.96,121.82]
[1748185328874,4.43505026,170.97,170.96,156.86]
[1748185329183,7.60576305,170.97,170.96,156.86]
[1748185330508,11.75983864,170.97,170.96,156.86]
[1748185332905,4.29288869,170.97,170.96,156.86]
[1748185335324,4.29288869,170.97,170.96,121.82]
[1748185335489,4.29288869,170.97,170.96,156.86]
[1748185336393,7.60576305,170.97,170.96,156.86]
[1748185340916,4.29288869,170.97,170.96,156.86]
[1748185342122,7.60576305,170.97,170.96,156.86]
[1748185343529,7.10576305,170.97,170.96,156.86]
[1748185344827,3.79288869,170.97,170.96,156.86]
[1748185345930,7.10576305,170.97,170.96,156.86]
[1748185347127,7.24792462,170.97,170.96,156.86]
[1748185348130,7.10576305,170.97,170.96,156.86]
[1748185355037,7.10576305,170.97,170.96,239.76]
[1748185355628,3.79288869,170.97,170.96,239.76]
[1748185356340,3.79288869,170.97,170.96,156.86]
[1748185356536,7.10576305,171.01,170.99,26.0]
[1748185356743,7.10576305,171.01,171.0,35.04]
[1748185357542,3.79288869,171.01,171.0,119.1]
[1748185358847,3.79288869,171.02,171.0,119.1]
[1748185359640,3.79288869,171.01,171.0,119.1]
[1748185360447,3.79288869,171.03,171.0,119.1]
[1748185361149,3.79288869,171.02,171.0,119.1]
[1748185361847,3.79288869,171.04,171.0,119.1]
[1748185362548,3.79288869,171.03,171.0,119.1]
[1748185363450,3.79288869,171.02,171.0,119.1]
[1748185364351,3.79288869,171.04,171.0,119.1]
[1748185364863,3.79288869,171.03,171.0,119.1]
[1748185365665,3.79288869,171.05,171.0,119.1]
[1748185366642,3.79288869,171.04,171.0,119.1]
[1748185367562,3.79288869,171.03,171.0,119.1]
[1748185368568,3.79288869,171.03,171.02,26.0]
[1748185368863,3.79288869,171.05,171.02,63.66]
[1748185369242,3.79288869,171.04,171.02,63.66]
[1748185369454,3.79288869,171.04,171.02,37.66]
[1748185369654,3.79288869,171.04,171.03,35.02]
[1748185369862,10.34545026,171.04,171.03,35.02]
[1748185370077,0.14216157,171.03,171.02,37.66]
[1748185370244,0.14216157,171.03,171.02,72.68]
[1748185370445,10.20328869,171.04,171.02,72.68]
[1748185371142,3.79288869,171.03,171.02,72.68]
[1748185373151,3.79288869,171.03,171.02,156.72]
[1748185382081,3.79288869,171.04,171.02,156.72]
[1748185382871,3.79288869,171.07,171.02,156.72]
[1748185383690,7.46694995,171.08,171.02,156.72]
[1748185383691,3.79288869,171.06,171.02,156.72]
[1748185384166,3.79288869,171.06,171.03,26.0]
[1748185384776,3.31287436,171.12,171.03,26.0]
[1748185385088,3.31287436,171.12,171.03,108.9]
[1748185385390,4.3227414,171.11,171.03,108.9]
[1748185385594,4.3227414,171.11,171.03,109.48442323]
[1748185386472,4.3227414,171.1,171.03,109.48442323]
[1748185387288,4.3227414,171.12,171.03,109.48442323]
[1748185388190,4.3227414,171.11,171.03,109.48442323]
[1748185388764,4.3227414,171.12,171.03,109.48442323]
[1748185389584,4.3227414,171.12,171.06,26.0]
[1748185389788,4.3227414,171.12,171.07,35.02]
[1748185389975,4.3227414,171.12,171.08,37.6]
[1748185390171,6.11720297,171.13,171.08,37.6]
[1748185392800,5.9750414,171.13,171.08,37.6]
[1748185396313,4.3227414,171.13,171.08,37.6]
[1748185396496,4.3227414,171.13,171.08,40.45099413]
[1748185396696,4.3227414,171.15,171.08,40.45099413]
[1748185397689,4.15407559,171.16,171.08,37.6]
[1748185397690,4.3227414,171.14,171.08,37.6]
[1748185398293,4.3227414,171.16,171.08,37.6]
[1748185398512,0.14216157,171.15,171.08,37.6]
[1748185399024,4.3227414,171.14,171.08,37.6]
[1748185399818,0.14216157,171.13,171.08,37.6]
[1748185400034,0.14216157,171.13,171.09,119.0]
[1748185400520,0.14216157,171.13,171.1,35.0]
[1748185401030,4.3227414,171.12,171.1,35.0]
[1748185401521,4.3227414,171.11,171.1,35.0]
[1748185402197,4.3227414,171.13,171.1,35.0]
[1748185402399,8.0121,171.11,171.09,84.0]
[1748185402591,8.15426157,171.11,171.1,35.0]
[1748185403010,12.47700297,171.11,171.1,35.0]
[1748185403820,12.3348414,171.11,171.1,35.0]
[1748185404027,4.3227414,171.11,171.1,35.0]
[1748185404798,4.15407559,171.13,171.1,35.0]
[1748185404799,4.3227414,171.12,171.1,35.0]
[1748185405319,4.15407559,171.13,171.1,35.0]
[1748185405612,4.3227414,171.15,171.1,35.0]
[1748185406125,4.3227414,171.14,171.1,35.0]
[1748185406625,4.3227414,171.13,171.1,35.0]
[1748185407316,4.3227414,171.15,171.1,35.0]
[1748185408222,0.14216157,171.14,171.1,35.0]
[1748185408519,4.46490297,171.14,171.11,72.6]
[1748185408901,0.14216157,171.12,171.11,72.6]
[1748185409095,20.31151043,171.12,171.09,84.0]
[1748185409295,26.0,171.07,170.96,82.9]
[1748185409548,6.63456157,171.05,170.93,6.79649428]
[1748185409848,6.4924,171.05,170.97,26.0]
[1748185410051,4.46490297,171.04,170.97,26.0]
[1748185410238,4.3227414,171.04,170.97,26.0]
[1748185411053,4.3227414,171.04,170.95,0.58465842]
[1748185411352,4.3227414,171.04,170.97,26.0]
[1748185412047,0.14216157,171.03,170.92,7.38119699]
[1748185412247,0.14216157,171.03,170.91,24.90855724]
[1748185412248,0.14216157,171.01,170.88,2.95631241]
[1748185412547,18.79181043,170.99,170.89,35.0]
[1748185413046,4.3227414,170.98,170.89,35.0]
[1748185413855,4.3227414,170.97,170.89,35.0]
[1748185414046,0.14216157,170.96,170.89,35.0]
[1748185414946,4.3227414,170.98,170.89,35.0]
[1748185415247,4.3227414,170.98,170.92,26.0]
[1748185415649,7.63561576,170.99,170.92,26.0]
[1748185416153,7.63561576,170.99,170.9,0.58495595]
[1748185416154,7.63561576,170.99,170.93,26.0]
[1748185416333,4.3227414,170.99,170.93,26.0]
[1748185417032,6.4924,171.0,170.93,26.0]
[1748185417234,0.14216157,170.99,170.94,35.02]
[1748185417543,0.14216157,170.97,170.95,156.62]
[1748185417743,0.14216157,170.97,170.96,121.6]
[1748185418766,4.4431842,170.97,170.96,121.6]
[1748185418930,23.09283306,170.97,170.96,121.6]
[1748185422137,50.70963306,170.97,170.77,10.0]
[1748185422357,0.14216157,170.91,170.78,60.46614314]
[1748185422552,0.14216157,170.91,170.81,26.0]
[1748185423046,18.79181043,170.91,170.78,108.34614314]
[1748185423240,18.79181043,170.91,170.79,35.04]
[1748185423442,18.79181043,170.91,170.82,26.0]
[1748185425674,18.79181043,170.91,170.83,35.04]
[1748185426362,6.3512,170.92,170.83,35.04]
[1748185426881,18.79181043,170.91,170.84,35.04]
[1748185427395,0.14216157,170.91,170.84,35.04]
[1748185427675,0.14216157,170.91,170.85,121.66]
[1748185428070,0.14216157,170.91,170.85,84.08]
[1748185428071,18.79181043,170.91,170.85,84.08]
[1748185428279,18.79181043,170.91,170.86,72.62]
[1748185429272,18.79181043,170.89,170.85,84.08]
[1748185429478,18.79181043,170.89,170.86,72.62]
[1748185431158,0.14216157,170.89,170.86,72.62]
[1748185433486,18.79181043,170.89,170.86,37.58]
[1748185433784,18.79181043,170.89,170.87,35.04]
[1748185435301,0.14216157,170.89,170.87,35.04]
[1748185436287,0.14216157,170.89,170.85,84.08]
[1748185436484,18.79181043,170.89,170.86,72.66]
[1748185437394,0.14216157,170.89,170.86,72.66]
[1748185437774,0.14216157,170.91,170.86,72.66]
[1748185437985,6.3512,170.92,170.86,72.66]
[1748185438291,0.14216157,170.93,170.86,72.66]
[1748185439181,0.14216157,170.93,170.87,72.66]
[1748185441595,1.6498,170.95,170.87,72.66]
[1748185443679,6.46416157,170.96,170.87,72.66]
[1748185444605,6.46416157,170.96,170.87,98.66]
[1748185445306,0.14216157,170.95,170.87,98.66]
[1748185445910,18.79181043,170.95,170.85,84.08]
[1748185446087,23.0652871,170.95,170.88,73.22]
[1748185446683,18.79181043,170.93,170.88,73.22]
[1748185447812,1.6498,170.92,170.88,73.22]
[1748185448514,0.14216157,170.91,170.88,73.22]
[1748185449709,18.79181043,170.91,170.88,38.18]
[1748185450011,18.79181043,170.91,170.89,35.04]
[1748185450406,0.14216157,170.89,170.88,38.18]
[1748185450719,6.46416157,170.89,170.88,73.22]
[1748185451019,25.11381043,170.89,170.88,73.22]
[1748185451406,29.3948282,170.89,170.88,73.22]
[1748185452591,32.67218779,170.89,170.88,73.22]
[1748185453199,32.67218779,170.89,170.88,73.24]
[1748185453737,7.55837736,170.89,170.88,73.24]
[1748185454608,4.28101777,170.89,170.88,73.24]
[1748185455534,7.55837736,170.89,170.88,73.24]
[1748185456215,0.14216157,170.88,170.85,84.08]
[1748185456417,0.14216157,170.88,170.86,73.24]
[1748185456998,4.28101777,170.87,170.86,73.24]
[1748185457508,23.0728282,170.87,170.86,73.24]
[1748185457909,26.35018779,170.87,170.86,73.24]
[1748185459715,7.70053893,170.87,170.86,73.24]
[1748185463798,0.14216157,170.86,170.85,84.08]
[1748185464009,0.14216157,170.86,170.85,122.28]
[1748185464330,23.0728282,170.86,170.85,122.28]
[1748185464931,26.35018779,170.86,170.85,157.34]
[1748185465420,34.16098779,170.86,170.85,84.08]
[1748185465622,18.79181043,170.82,170.66,3.3833]
[1748185465833,18.79181043,170.82,170.71,26.0]
[1748185466016,18.79181043,170.82,170.72,35.06]
[1748185466205,4.28101777,170.81,170.73,38.2]
[1748185466607,0.14216157,170.79,170.73,38.2]
[1748185467525,0.14216157,170.79,170.74,84.14]
[1748185467726,4.28101777,170.78,170.75,35.06]
[1748185468307,0.14216157,170.77,170.76,35.06]
[1748185468612,4.42317934,170.77,170.76,35.06]
[1748185469400,4.42317934,170.77,170.74,84.14]
[1748185469616,4.42317934,170.77,170.75,35.06]
[1748185469815,4.42317934,170.76,170.75,35.06]
[1748185471848,0.14216157,170.76,170.75,35.06]
[1748185478934,0.14216157,170.75,170.74,84.14]
[1748185479138,0.14216157,170.75,170.74,119.22]
[1748185479436,4.42317934,170.75,170.74,119.22]
[1748185480543,23.0728282,170.75,170.74,84.14]